[Event "Polgar Challenge 2021"]
[Site "Online"]
[Date "2021.04.04"]
[Round "16.7"]
[White "Salimova, Nurgyul"]
[Black "Keymer, Vincent"]
[Result "0-1"]
[ECO "E11"]
[WhiteElo "2397"]
[BlackElo "2591"]
[Annotator "ChessBase"]
[PlyCount "64"]
[EventDate "2021.04.08"]
[EventType "tourn"]
[EventCountry "NET"]
[SourceTitle "playchess.com"]
[Source "ChessBase"]
[SourceQuality "1"]
[TimeControl "600+5"]

1. d4 {[%emt 0:00:00]} Nf6 {[%emt 0:00:00]} 2. Nf3 {[%emt 0:00:00]} e6 {[%emt 0:00:00]} 3. c4 {[%emt 0:00:04]} d5 {[%emt 0:00:00]} 4. g3 {[%emt 0:00:01]} Bb4+ {[%emt 0:00:02]} 5. Bd2 {[%emt 0:00:02]} Be7 {[%emt 0:00:02]} 6. Bg2 {[%emt 0:00:06]} O-O {[%emt 0:00:01]} 7. O-O {[%emt 0:00:20]} c6 {[%emt 0:00:01]} 8. Bf4 {[%emt 0:00:07]} dxc4 {[%emt 0:00:04]} 9. Ne5 {[%emt 0:00:21]} b5 {[%emt 0:00:01]} 10. Nxc6 {[%emt 0:01:10]} Nxc6 {[%emt 0:00:03]} 11. Bxc6 {[%emt 0:00:01]} Ba6 {[%emt 0:00:00]} 12. Bxa8 {[%emt 0:01:04]} Qxa8 {[%emt 0:00:00]} 13. Nd2 {[%emt 0:01:04]} h6 {[%emt 0:01:04]} 14. Nf3 {[%emt 0:00:07]} Qd5 {[%emt 0:00:05]} 15. h4 {[%emt 0:01:12]} Bb7 {[%emt 0:00:17]} 16. Re1 {[%emt 0:01:23]} Ne4 {[%emt 0:00:11]} 17. h5 {[%emt 0:01:15]} Qxh5 {[%emt 0:00:16]} 18. Kg2 {[%emt 0:00:01]} Qd5 {[%emt 0:01:07]} 19. Rh1 {[%emt 0:00:22]} Rd8 {[%emt 0:00:05]} 20. Qc2 {[%emt 0:01:34]} Qf5 {[%emt 0:00:44]} 21. Qc1 {[%emt 0:00:27]} Ng5 {[%emt 0:00:34]} 22. Bxg5 {[%emt 0:00:47]} hxg5 {[%emt 0:00:02]} 23. Qg1 {[%emt 0:00:16]} g4 {[%emt 0:00:45]} 24. Qh2 {[%emt 0:00:01]} gxf3+ {[%emt 0:00:01]} 25. Kg1 {[%emt 0:00:02]} f6 {[%emt 0:00:03]} 26. e3 {[%emt 0:00:04]} Be4 {[%emt 0:00:17]} 27. Qh4 {[%emt 0:00:07]} Kf7 {[%emt 0:00:12]} 28. Rc1 {[%emt 0:00:12]} Bd3 {[%emt 0:00:18]} 29. a3 {[%emt 0:00:05]} a5 {[%emt 0:00:06]} 30. g4 {[%emt 0:00:02]} Qg6 {[%emt 0:00:08]} 31. Qg3 {[%emt 0:00:04]} Bd6 {[%emt 0:00:02]} 32. Qh4 {[%emt 0:00:12]} Rh8 {[%emt 0:00:04]} 0-1

[Event "Polgar Challenge 2021"]
[Site "Online"]
[Date "2021.04.04"]
[Round "17.2"]
[White "Bjerre, Jonas Buhl"]
[Black "Yoo, Christopher Woojin"]
[Result "1-0"]
[ECO "A50"]
[WhiteElo "2550"]
[BlackElo "2455"]
[Annotator "ChessBase"]
[PlyCount "97"]
[EventDate "2021.04.08"]
[EventType "tourn"]
[EventCountry "NET"]
[SourceTitle "playchess.com"]
[Source "ChessBase"]
[SourceQuality "1"]
[TimeControl "600+5"]

1. d4 {[%emt 0:00:00]} Nf6 {[%emt 0:00:00]} 2. c4 {[%emt 0:00:00]} b6 {[%emt 0:00:01]} 3. Nf3 {[%emt 0:00:12]} Bb7 {[%emt 0:00:04]} 4. g3 {[%emt 0:00:01]} g6 {[%emt 0:00:26]} 5. Bg2 {[%emt 0:00:15]} Bg7 {[%emt 0:00:03]} 6. O-O {[%emt 0:00:08]} O-O {[%emt 0:00:01]} 7. Nc3 {[%emt 0:00:51]} Ne4 {[%emt 0:00:04]} 8. Nxe4 {[%emt 0:00:22]} Bxe4 {[%emt 0:00:09]} 9. Bf4 {[%emt 0:00:09]} d6 {[%emt 0:00:56]} 10. Qd2 {[%emt 0:00:13]} e6 {[%emt 0:00:03]} 11. Bg5 {[%emt 0:00:36]} Qe8 {[%emt 0:02:10]} 12. Bh6 {[%emt 0:00:14]} Nd7 {[%emt 0:00:16]} 13. Qe3 {[%emt 0:00:38]} Bb7 {[%emt 0:00:14]} 14. Rfd1 {[%emt 0:00:39]} Nf6 {[%emt 0:00:43]} 15. Bxg7 {[%emt 0:00:03]} Kxg7 {[%emt 0:00:02]} 16. c5 {[%emt 0:00:24]} Qb5 {[%emt 0:00:48]} 17. a4 {[%emt 0:01:07]} Qb4 {[%emt 0:00:23]} 18. Rdc1 {[%emt 0:01:03]} Bd5 {[%emt 0:01:26]} 19. Nd2 {[%emt 0:00:42]} Bxg2 {[%emt 0:00:13]} 20. Kxg2 {[%emt 0:00:15]} Nd5 {[%emt 0:00:57]} 21. Qd3 {[%emt 0:00:03]} dxc5 {[%emt 0:00:16]} 22. Rc4 {[%emt 0:00:48]} Qxb2 {[%emt 0:00:12]} 23. Rb1 {[%emt 0:00:10]} Qa2 {[%emt 0:00:03]} 24. e4 {[%emt 0:00:26]} Nf6 {[%emt 0:00:27]} 25. d5 {[%emt 0:01:06]} exd5 {[%emt 0:00:29]} 26. exd5 {[%emt 0:00:02]} Rad8 {[%emt 0:00:12]} 27. Qc3 {[%emt 0:00:13]} Rxd5 {[%emt 0:00:10]} 28. Rb2 {[%emt 0:00:33]} Qa1 {[%emt 0:00:43]} 29. Ne4 {[%emt 0:00:01]} Rd1 {[%emt 0:00:19]} 30. Nxf6 {[%emt 0:00:34]} Rg1+ {[%emt 0:00:04]} 31. Kh3 {[%emt 0:00:04]} Kh8 {[%emt 0:00:35]} 32. Nd7+ {[%emt 0:00:11]} Kg8 {[%emt 0:00:01]} 33. Nf6+ {[%emt 0:00:11]} Kh8 {[%emt 0:00:02]} 34. Nxh7+ {[%emt 0:00:03]} f6 {[%emt 0:00:04]} 35. Nxf8 {[%emt 0:00:06]} Qf1+ {[%emt 0:00:06]} 36. Kh4 {[%emt 0:00:06]} g5+ {[%emt 0:00:12]} 37. Kh5 {[%emt 0:00:16]} Kg7 {[%emt 0:00:05]} 38. Ne6+ {[%emt 0:00:07]} Kf7 {[%emt 0:00:04]} 39. Nxg5+ {[%emt 0:00:06]} Kg7 {[%emt 0:00:04]} 40. Ne6+ {[%emt 0:00:06]} Kf7 {[%emt 0:00:01]} 41. Nf4 {[%emt 0:00:12]} Qd1+ {[%emt 0:00:05]} 42. f3 {[%emt 0:00:03]} Qd8 {[%emt 0:00:06]} 43. Kg4 {[%emt 0:00:06]} Qd7+ {[%emt 0:00:03]} 44. Kh4 {[%emt 0:00:03]} Qf5 {[%emt 0:00:01]} 45. g4 {[%emt 0:00:06]} Qg5+ {[%emt 0:00:10]} 46. Kh3 {[%emt 0:00:01]} f5 {[%emt 0:00:09]} 47. Nh5 {[%emt 0:00:03]} fxg4+ {[%emt 0:00:08]} 48. fxg4 {[%emt 0:00:01]} Rf1 {[%emt 0:00:07]} 49. Qg3 {[%emt 0:00:05]} 1-0

[Event "Polgar Challenge 2021"]
[Site "Online"]
[Date "2021.04.04"]
[Round "17.3"]
[White "Gukesh D"]
[Black "Liang, Awonder"]
[Result "1-0"]
[ECO "E99"]
[WhiteElo "2578"]
[BlackElo "2592"]
[Annotator "ChessBase"]
[PlyCount "119"]
[EventDate "2021.04.08"]
[EventType "tourn"]
[EventCountry "NET"]
[SourceTitle "playchess.com"]
[Source "ChessBase"]
[SourceQuality "1"]
[TimeControl "600+5"]

1. d4 {[%emt 0:00:00]} Nf6 {[%emt 0:00:00]} 2. c4 {[%emt 0:00:01]} g6 {[%emt 0:00:00]} 3. Nc3 {[%emt 0:00:01]} Bg7 {[%emt 0:00:00]} 4. e4 {[%emt 0:00:02]} d6 {[%emt 0:00:00]} 5. Nf3 {[%emt 0:00:08]} O-O {[%emt 0:00:01]} 6. Be2 {[%emt 0:00:02]} e5 {[%emt 0:00:01]} 7. O-O {[%emt 0:00:10]} Nc6 {[%emt 0:00:02]} 8. d5 {[%emt 0:00:02]} Ne7 {[%emt 0:00:01]} 9. Ne1 {[%emt 0:00:01]} Nd7 {[%emt 0:00:11]} 10. Nd3 {[%emt 0:00:02]} f5 {[%emt 0:00:04]} 11. f3 {[%emt 0:00:02]} f4 {[%emt 0:00:04]} 12. b4 {[%emt 0:00:01]} g5 {[%emt 0:00:28]} 13. c5 {[%emt 0:00:06]} Ng6 {[%emt 0:00:02]} 14. a4 {[%emt 0:00:34]} Rf7 {[%emt 0:00:05]} 15. a5 {[%emt 0:00:42]} Bf8 {[%emt 0:00:19]} 16. c6 {[%emt 0:00:37]} Nf6 {[%emt 0:00:30]} 17. b5 {[%emt 0:00:51]} h5 {[%emt 0:00:29]} 18. Nf2 {[%emt 0:00:23]} Rg7 {[%emt 0:00:26]} 19. Kh1 {[%emt 0:00:24]} Rb8 {[%emt 0:01:11]} 20. Rg1 {[%emt 0:02:43]} Nh8 {[%emt 0:00:45]} 21. g3 {[%emt 0:00:18]} Ng6 {[%emt 0:00:57]} 22. gxf4 {[%emt 0:00:54]} Nxf4 {[%emt 0:00:04]} 23. Bxf4 {[%emt 0:00:03]} exf4 {[%emt 0:00:11]} 24. Rg2 {[%emt 0:00:31]} bxc6 {[%emt 0:00:21]} 25. dxc6 {[%emt 0:00:07]} Qe7 {[%emt 0:00:59]} 26. Qd4 {[%emt 0:00:45]} Qe5 {[%emt 0:00:01]} 27. Qxa7 {[%emt 0:00:43]} Qxc3 {[%emt 0:00:02]} 28. Rag1 {[%emt 0:00:02]} Rxb5 {[%emt 0:00:03]} 29. Bxb5 {[%emt 0:00:03]} Qxf3 {[%emt 0:00:01]} 30. Qd4 {[%emt 0:00:42]} Rg6 {[%emt 0:02:23]} 31. Qd3 {[%emt 0:00:16]} Qxd3 {[%emt 0:00:43]} 32. Bxd3 {[%emt 0:00:02]} g4 {[%emt 0:00:05]} 33. e5 {[%emt 0:00:04]} f3 {[%emt 0:00:07]} 34. Bxg6 {[%emt 0:00:33]} fxg2+ {[%emt 0:00:01]} 35. Kxg2 {[%emt 0:00:09]} dxe5 {[%emt 0:00:05]} 36. Rb1 {[%emt 0:00:02]} Nd5 {[%emt 0:00:04]} 37. Rb8 {[%emt 0:00:22]} Ba6 {[%emt 0:00:04]} 38. Be4 {[%emt 0:00:12]} Nf4+ {[%emt 0:00:02]} 39. Kg1 {[%emt 0:00:03]} Kf7 {[%emt 0:00:02]} 40. Ra8 {[%emt 0:00:05]} Bb5 {[%emt 0:00:06]} 41. a6 {[%emt 0:00:10]} Bc5 {[%emt 0:00:04]} 42. a7 {[%emt 0:00:07]} Nh3+ {[%emt 0:00:12]} 43. Kg2 {[%emt 0:00:01]} Nxf2 {[%emt 0:00:47]} 44. Bd5+ {[%emt 0:00:01]} Ke7 {[%emt 0:00:07]} 45. Re8+ {[%emt 0:00:04]} Kxe8 {[%emt 0:00:01]} 46. a8=Q+ {[%emt 0:00:01]} Ke7 {[%emt 0:00:00]} 47. Qg8 {[%emt 0:00:27]} Kf6 {[%emt 0:00:04]} 48. Qf7+ {[%emt 0:00:06]} Kg5 {[%emt 0:00:02]} 49. Qg7+ {[%emt 0:00:02]} Kf5 {[%emt 0:00:05]} 50. Qxc7 {[%emt 0:00:05]} Nd3 {[%emt 0:00:05]} 51. Qf7+ {[%emt 0:00:06]} Kg5 {[%emt 0:00:01]} 52. c7 {[%emt 0:00:08]} Ba6 {[%emt 0:00:05]} 53. Qg8+ {[%emt 0:00:04]} Kf4 {[%emt 0:00:03]} 54. c8=Q {[%emt 0:00:03]} Bxc8 {[%emt 0:00:01]} 55. Qxc8 {[%emt 0:00:01]} e4 {[%emt 0:00:00]} 56. Qe6 {[%emt 0:00:10]} Ne1+ {[%emt 0:00:24]} 57. Kf1 {[%emt 0:00:01]} Nf3 {[%emt 0:00:02]} 58. Qxe4+ {[%emt 0:00:03]} Kg5 {[%emt 0:00:00]} 59. Kg2 {[%emt 0:00:04]} h4 {[%emt 0:00:09]} 60. h3 {[%emt 0:00:03]} 1-0

[Event "Polgar Challenge 2021"]
[Site "Online"]
[Date "2021.04.04"]
[Round "17.7"]
[White "Khademalsharieh, Sarasadat"]
[Black "Yip, Carissa"]
[Result "1/2-1/2"]
[ECO "D77"]
[WhiteElo "2494"]
[BlackElo "2430"]
[Annotator "ChessBase"]
[PlyCount "92"]
[EventDate "2021.04.08"]
[EventType "tourn"]
[EventCountry "NET"]
[SourceTitle "playchess.com"]
[Source "ChessBase"]
[SourceQuality "1"]
[TimeControl "600+5"]

1. d4 {[%emt 0:00:00]} g6 {[%emt 0:00:00]} 2. c4 {[%emt 0:00:00]} Bg7 {[%emt 0:00:01]} 3. Nf3 {[%emt 0:00:03]} Nf6 {[%emt 0:00:09]} 4. g3 {[%emt 0:00:02]} d5 {[%emt 0:00:04]} 5. Bg2 {[%emt 0:00:08]} O-O {[%emt 0:00:03]} 6. O-O {[%emt 0:00:02]} dxc4 {[%emt 0:00:02]} 7. Na3 {[%emt 0:00:01]} Nc6 {[%emt 0:00:01]} 8. Nxc4 {[%emt 0:00:06]} Be6 {[%emt 0:00:01]} 9. b3 {[%emt 0:01:01]} Bd5 {[%emt 0:00:03]} 10. Bb2 {[%emt 0:00:12]} a5 {[%emt 0:00:02]} 11. a4 {[%emt 0:00:50]} Qc8 {[%emt 0:00:10]} 12. Rc1 {[%emt 0:00:11]} Rd8 {[%emt 0:00:41]} 13. e3 {[%emt 0:00:32]} Ne4 {[%emt 0:00:48]} 14. Qe2 {[%emt 0:00:14]} Qe6 {[%emt 0:00:30]} 15. Ne1 {[%emt 0:01:36]} Ng5 {[%emt 0:02:12]} 16. h4 {[%emt 0:01:51]} Bxg2 {[%emt 0:00:40]} 17. Nxg2 {[%emt 0:00:22]} Ne4 {[%emt 0:00:15]} 18. Nf4 {[%emt 0:00:32]} Qf5 {[%emt 0:00:02]} 19. Kg2 {[%emt 0:00:37]} e5 {[%emt 0:00:50]} 20. g4 {[%emt 0:01:17]} Qf6 {[%emt 0:00:03]} 21. g5 {[%emt 0:00:46]} Qf5 {[%emt 0:00:17]} 22. dxe5 {[%emt 0:00:01]} Nxe5 {[%emt 0:00:03]} 23. Bxe5 {[%emt 0:00:10]} Bxe5 {[%emt 0:00:04]} 24. Nxe5 {[%emt 0:00:01]} Qxe5 {[%emt 0:00:01]} 25. Rc2 {[%emt 0:00:04]} c6 {[%emt 0:01:13]} 26. Rd1 {[%emt 0:00:31]} Nc3 {[%emt 0:00:11]} 27. Rxd8+ {[%emt 0:00:02]} Rxd8 {[%emt 0:00:00]} 28. Qf3 {[%emt 0:00:04]} Ne4 {[%emt 0:00:03]} 29. Rc4 {[%emt 0:00:13]} Nd2 {[%emt 0:00:05]} 30. Qd1 {[%emt 0:00:02]} Rd6 {[%emt 0:00:19]} 31. Rc1 {[%emt 0:00:26]} Qe4+ {[%emt 0:00:24]} 32. Kg3 {[%emt 0:00:02]} Qf5 {[%emt 0:00:26]} 33. Kg2 {[%emt 0:00:11]} f6 {[%emt 0:00:29]} 34. gxf6 {[%emt 0:00:07]} Qxf6 {[%emt 0:00:07]} 35. Qg4 {[%emt 0:00:01]} Nxb3 {[%emt 0:00:17]} 36. Rc2 {[%emt 0:00:14]} Qf5 {[%emt 0:00:13]} 37. Qe2 {[%emt 0:00:01]} Qe4+ {[%emt 0:00:19]} 38. Kg3 {[%emt 0:00:04]} Qxa4 {[%emt 0:00:21]} 39. Qg4 {[%emt 0:00:05]} Rf6 {[%emt 0:00:26]} 40. Qc8+ {[%emt 0:00:07]} Rf8 {[%emt 0:00:01]} 41. Qe6+ {[%emt 0:00:10]} Rf7 {[%emt 0:00:23]} 42. Rc3 {[%emt 0:00:04]} Nd2 {[%emt 0:00:08]} 43. Qe8+ {[%emt 0:00:12]} Rf8 {[%emt 0:00:09]} 44. Qe6+ {[%emt 0:00:02]} Rf7 {[%emt 0:00:12]} 45. Qe8+ {[%emt 0:00:06]} Rf8 {[%emt 0:00:02]} 46. Qe6+ {[%emt 0:00:02]} Rf7 {[%emt 0:00:03]} 1/2-1/2

[Event "Polgar Challenge 2021"]
[Site "Online"]
[Date "2021.04.04"]
[Round "17.9"]
[White "Murzin, Volodar"]
[Black "Badelka, Olga"]
[Result "1-0"]
[ECO "C11"]
[WhiteElo "2478"]
[BlackElo "2433"]
[Annotator "ChessBase"]
[PlyCount "79"]
[EventDate "2021.04.08"]
[EventType "tourn"]
[EventCountry "NET"]
[SourceTitle "playchess.com"]
[Source "ChessBase"]
[SourceQuality "1"]
[TimeControl "600+5"]

1. e4 {[%emt 0:00:00]} e6 {[%emt 0:00:00]} 2. d4 {[%emt 0:00:00]} d5 {[%emt 0:00:00]} 3. Nc3 {[%emt 0:00:02]} Nf6 {[%emt 0:00:00]} 4. e5 {[%emt 0:00:01]} Nfd7 {[%emt 0:00:00]} 5. Nce2 {[%emt 0:00:01]} c5 {[%emt 0:00:03]} 6. c3 {[%emt 0:00:00]} Nc6 {[%emt 0:00:04]} 7. f4 {[%emt 0:00:04]} Be7 {[%emt 0:00:03]} 8. Nf3 {[%emt 0:00:01]} O-O {[%emt 0:00:03]} 9. g3 {[%emt 0:00:04]} b5 {[%emt 0:00:04]} 10. a3 {[%emt 0:00:03]} a5 {[%emt 0:00:02]} 11. Bg2 {[%emt 0:01:13]} b4 {[%emt 0:00:11]} 12. axb4 {[%emt 0:00:08]} cxb4 {[%emt 0:00:02]} 13. O-O {[%emt 0:00:06]} Nb6 {[%emt 0:01:01]} 14. g4 {[%emt 0:00:39]} bxc3 {[%emt 0:00:20]} 15. bxc3 {[%emt 0:00:03]} Nc4 {[%emt 0:00:25]} 16. Ng3 {[%emt 0:00:43]} f6 {[%emt 0:00:59]} 17. Kh1 {[%emt 0:00:08]} fxe5 {[%emt 0:00:41]} 18. dxe5 {[%emt 0:00:15]} Kh8 {[%emt 0:01:25]} 19. Nd4 {[%emt 0:00:15]} Nxd4 {[%emt 0:01:02]} 20. cxd4 {[%emt 0:00:03]} Bh4 {[%emt 0:00:21]} 21. Ne2 {[%emt 0:00:29]} Be7 {[%emt 0:00:15]} 22. Bh3 {[%emt 0:03:01]} Bd7 {[%emt 0:01:36]} 23. f5 {[%emt 0:00:18]} Bg5 {[%emt 0:00:18]} 24. Qd3 {[%emt 0:00:37]} Bxc1 {[%emt 0:00:41]} 25. Raxc1 {[%emt 0:00:03]} Qg5 {[%emt 0:00:15]} 26. Ng3 {[%emt 0:01:10]} a4 {[%emt 0:00:19]} 27. Ra1 {[%emt 0:01:55]} a3 {[%emt 0:00:02]} 28. Rfe1 {[%emt 0:00:37]} Qh4 {[%emt 0:01:11]} 29. Kg2 {[%emt 0:00:09]} Rab8 {[%emt 0:00:03]} 30. Re2 {[%emt 0:00:04]} Rb2 {[%emt 0:00:22]} 31. Ra2 {[%emt 0:00:12]} Qg5 {[%emt 0:00:08]} 32. Kh1 {[%emt 0:00:07]} Qc1+ {[%emt 0:00:03]} 33. Kg2 {[%emt 0:00:00]} Ne3+ {[%emt 0:00:22]} 34. Kf3 {[%emt 0:00:04]} Nd1 {[%emt 0:00:10]} 35. Qxa3 {[%emt 0:00:05]} Rfb8 {[%emt 0:00:16]} 36. Raxb2 {[%emt 0:00:04]} Nxb2 {[%emt 0:00:01]} 37. f6 {[%emt 0:00:05]} gxf6 {[%emt 0:00:03]} 38. exf6 {[%emt 0:00:01]} Qb1 {[%emt 0:00:12]} 39. Qe7 {[%emt 0:00:10]} Nc4 {[%emt 0:00:04]} 40. Qg7# {[%emt 0:00:02]} 1-0

[Event "Polgar Challenge 2021"]
[Site "Online"]
[Date "2021.04.04"]
[Round "18.2"]
[White "Badelka, Olga"]
[Black "Mammadzada, Gunay"]
[Result "0-1"]
[ECO "A07"]
[WhiteElo "2433"]
[BlackElo "2443"]
[Annotator "NA"]
[PlyCount "156"]
[EventDate "2021.04.08"]
[EventType "tourn"]
[EventCountry "NET"]
[SourceTitle "playchess.com"]
[Source "ChessBase"]
[SourceQuality "1"]
[TimeControl "600+5"]

1. Nf3 {[%emt 0:00:00]} d5 {[%emt 0:00:00]} 2. g3 {[%emt 0:00:00]} c6 {[%emt 0:00:00]} 3. Bg2 {[%emt 0:00:00]} Nf6 {[%emt 0:00:00]} 4. O-O {[%emt 0:00:00]} Bg4 {[%emt 0:00:00]} 5. h3 {[%emt 0:00:02]} Bh5 {[%emt 0:00:02]} 6. d4 {[%emt 0:00:01]} e6 {[%emt 0:00:31]} 7. c4 {[%emt 0:00:02]} Nbd7 {[%emt 0:00:19]} 8. cxd5 {[%emt 0:00:05]} exd5 {[%emt 0:00:04]} 9. Nh4 {[%emt 0:00:01]} Bg6 {[%emt 0:00:03]} 10. Nc3 {[%emt 0:00:01]} Bd6 {[%emt 0:00:19]} 11. Nxg6 {[%emt 0:00:14]} hxg6 {[%emt 0:00:02]} 12. Qd3 {[%emt 0:00:02]} O-O {[%emt 0:00:32]} 13. h4 {[%emt 0:00:21]} Re8 {[%emt 0:00:21]} 14. Bg5 {[%emt 0:00:17]} Qb6 {[%emt 0:00:12]} 15. Bf3 {[%emt 0:01:12]} Be7 {[%emt 0:00:46]} 16. Kg2 {[%emt 0:00:38]} Nf8 {[%emt 0:00:44]} 17. b3 {[%emt 0:00:56]} Ne6 {[%emt 0:00:09]} 18. Bxf6 {[%emt 0:00:20]} Bxf6 {[%emt 0:00:02]} 19. e3 {[%emt 0:00:01]} Rad8 {[%emt 0:01:46]} 20. Rh1 {[%emt 0:00:49]} Nf8 {[%emt 0:00:16]} 21. Rac1 {[%emt 0:00:59]} Qb4 {[%emt 0:00:21]} 22. Ne2 {[%emt 0:00:39]} Qd6 {[%emt 0:00:28]} 23. Rh3 {[%emt 0:00:28]} Ne6 {[%emt 0:00:18]} 24. Rch1 {[%emt 0:00:58]} c5 {[%emt 0:01:00]} 25. h5 {[%emt 0:00:05]} g5 {[%emt 0:00:27]} 26. dxc5 {[%emt 0:02:13]} Nxc5 {[%emt 0:00:05]} 27. Qf5 {[%emt 0:00:03]} Qe6 {[%emt 0:01:45]} 28. Qxe6 {[%emt 0:00:01]} fxe6 {[%emt 0:00:05]} 29. Rd1 {[%emt 0:00:44]} Nd7 {[%emt 0:00:16]} 30. Nd4 {[%emt 0:00:28]} Bxd4 {[%emt 0:00:57]} 31. exd4 {[%emt 0:00:02]} Nf6 {[%emt 0:00:00]} 32. Rhh1 {[%emt 0:00:11]} Rc8 {[%emt 0:00:01]} 33. Rc1 {[%emt 0:00:12]} g4 {[%emt 0:00:02]} 34. Be2 {[%emt 0:00:02]} Kh7 {[%emt 0:00:01]} 35. Bd3+ {[%emt 0:00:10]} Kh6 {[%emt 0:00:04]} 36. Bg6 {[%emt 0:00:04]} Rf8 {[%emt 0:00:21]} 37. Rce1 {[%emt 0:00:07]} Rc6 {[%emt 0:00:14]} 38. Re2 {[%emt 0:00:03]} Ng8 {[%emt 0:00:10]} 39. Rhe1 {[%emt 0:00:04]} Rf6 {[%emt 0:00:02]} 40. Be8 {[%emt 0:00:20]} Rd6 {[%emt 0:00:01]} 41. Rc1 {[%emt 0:00:04]} Rf8 {[%emt 0:00:08]} 42. Bg6 {[%emt 0:00:02]} Ne7 {[%emt 0:00:10]} 43. Rc7 {[%emt 0:00:10]} Nxg6 {[%emt 0:00:16]} 44. hxg6 {[%emt 0:00:00]} Rb6 {[%emt 0:00:01]} 45. Re1 {[%emt 0:00:13]} Kxg6 {[%emt 0:00:07]} 46. Rh1 {[%emt 0:00:02]} Rf7 {[%emt 0:00:10]} 47. Rc8 {[%emt 0:00:09]} Rc6 {[%emt 0:00:02]} 48. Rxc6 {[%emt 0:00:02]} bxc6 {[%emt 0:00:02]} 49. Rc1 {[%emt 0:00:01]} Rc7 {[%emt 0:00:01]} 50. b4 {[%emt 0:00:19]} Rb7 {[%emt 0:00:20]} 51. a3 {[%emt 0:00:02]} Rb6 {[%emt 0:00:02]} 52. Rc5 {[%emt 0:00:04]} Ra6 {[%emt 0:00:04]} 53. Rc3 {[%emt 0:00:06]} Kf5 {[%emt 0:00:09]} 54. Re3 {[%emt 0:00:01]} Ra4 {[%emt 0:00:03]} 55. Rc3 {[%emt 0:00:13]} a5 {[%emt 0:00:02]} 56. bxa5 {[%emt 0:00:02]} Rxd4 {[%emt 0:00:06]} 57. Rxc6 {[%emt 0:00:02]} Ra4 {[%emt 0:00:01]} 58. a6 {[%emt 0:00:02]} Rxa3 {[%emt 0:00:01]} 59. Kf1 {[%emt 0:00:15]} e5 {[%emt 0:00:03]} 60. Ke2 {[%emt 0:00:04]} Ke4 {[%emt 0:00:01]} 61. Rb6 {[%emt 0:00:05]} Ra2+ {[%emt 0:00:02]} 62. Ke1 {[%emt 0:00:03]} d4 {[%emt 0:00:02]} 63. Kf1 {[%emt 0:00:07]} d3 {[%emt 0:00:06]} 64. Ke1 {[%emt 0:00:01]} Kd4 {[%emt 0:00:15]} 65. Rc6 {[%emt 0:00:08]} Re2+ {[%emt 0:00:12]} 66. Kf1 {[%emt 0:00:03]} Rc2 {[%emt 0:00:10]} 67. a7 {[%emt 0:00:08]} Ra2 {[%emt 0:00:05]} 68. Rc7 {[%emt 0:00:02]} g5 {[%emt 0:00:03]} 69. Ke1 {[%emt 0:00:02]} Ke4 {[%emt 0:00:01]} 70. Kd1 {[%emt 0:00:13]} Kf3 {[%emt 0:00:10]} 71. Rf7+ {[%emt 0:00:02]} Kg2 {[%emt 0:00:03]} 72. Ke1 {[%emt 0:00:01]} e4 {[%emt 0:00:03]} 73. Kd1 {[%emt 0:00:02]} Kf1 {[%emt 0:00:05]} 74. Kc1 {[%emt 0:00:13]} Ke1 {[%emt 0:00:02]} 75. Kb1 {[%emt 0:00:01]} Ra4 {[%emt 0:00:14]} 76. Rd7 {[%emt 0:00:09]} d2 {[%emt 0:00:03]} 77. Kc2 {[%emt 0:00:01]} Ra2+ {[%emt 0:00:02]} 78. Kb3 {[%emt 0:00:06]} Rxa7 {[%emt 0:00:02]} 0-1

[Event "Polgar Challenge 2021"]
[Site "Online"]
[Date "2021.04.04"]
[Round "18.3"]
[White "Lei, Tingjie"]
[Black "Murzin, Volodar"]
[Result "0-1"]
[ECO "D10"]
[WhiteElo "2505"]
[BlackElo "2478"]
[Annotator "ChessBase"]
[PlyCount "88"]
[EventDate "2021.04.08"]
[EventType "tourn"]
[EventCountry "NET"]
[SourceTitle "playchess.com"]
[Source "ChessBase"]
[SourceQuality "1"]
[TimeControl "600+5"]

1. d4 {[%emt 0:00:00]} d5 {[%emt 0:00:00]} 2. c4 {[%emt 0:00:00]} c6 {[%emt 0:00:00]} 3. cxd5 {[%emt 0:00:00]} cxd5 {[%emt 0:00:00]} 4. Bf4 {[%emt 0:00:00]} Nc6 {[%emt 0:00:07]} 5. Nc3 {[%emt 0:00:02]} e6 {[%emt 0:00:00]} 6. e3 {[%emt 0:00:02]} Bd6 {[%emt 0:00:02]} 7. Bxd6 {[%emt 0:00:01]} Qxd6 {[%emt 0:00:00]} 8. Qg4 {[%emt 0:00:01]} Kf8 {[%emt 0:00:32]} 9. Nf3 {[%emt 0:00:11]} Nge7 {[%emt 0:00:03]} 10. Qg3 {[%emt 0:00:32]} Nf5 {[%emt 0:00:45]} 11. Qxd6+ {[%emt 0:00:04]} Nxd6 {[%emt 0:00:00]} 12. Rc1 {[%emt 0:00:03]} Bd7 {[%emt 0:00:04]} 13. Nb5 {[%emt 0:00:47]} Ke7 {[%emt 0:00:06]} 14. Nxd6 {[%emt 0:00:07]} Kxd6 {[%emt 0:00:01]} 15. Kd2 {[%emt 0:00:28]} f6 {[%emt 0:00:13]} 16. Bb5 {[%emt 0:00:35]} Rhc8 {[%emt 0:00:07]} 17. h4 {[%emt 0:00:58]} Be8 {[%emt 0:00:57]} 18. Bd3 {[%emt 0:00:18]} h6 {[%emt 0:00:52]} 19. g4 {[%emt 0:00:28]} Nb4 {[%emt 0:00:21]} 20. Bb1 {[%emt 0:00:05]} Rxc1 {[%emt 0:00:04]} 21. Rxc1 {[%emt 0:00:03]} Nc6 {[%emt 0:00:05]} 22. Rg1 {[%emt 0:00:45]} Ne7 {[%emt 0:00:11]} 23. g5 {[%emt 0:00:43]} Bh5 {[%emt 0:00:42]} 24. Ne1 {[%emt 0:00:23]} Rg8 {[%emt 0:01:26]} 25. Bh7 {[%emt 0:00:38]} Rf8 {[%emt 0:00:12]} 26. Nd3 {[%emt 0:02:15]} fxg5 {[%emt 0:02:10]} 27. hxg5 {[%emt 0:00:04]} g6 {[%emt 0:01:44]} 28. Nf4 {[%emt 0:00:03]} hxg5 {[%emt 0:00:40]} 29. Rxg5 {[%emt 0:00:12]} Rf7 {[%emt 0:00:02]} 30. Bxg6 {[%emt 0:00:21]} Bxg6 {[%emt 0:00:04]} 31. Nxg6 {[%emt 0:00:02]} Rxf2+ {[%emt 0:00:05]} 32. Kc3 {[%emt 0:00:01]} Nf5 {[%emt 0:00:14]} 33. Rh5 {[%emt 0:01:03]} Nxe3 {[%emt 0:00:26]} 34. Rh7 {[%emt 0:00:10]} Nd1+ {[%emt 0:00:04]} 35. Kd3 {[%emt 0:00:02]} Nxb2+ {[%emt 0:00:03]} 36. Ke3 {[%emt 0:00:01]} Rg2 {[%emt 0:00:18]} 37. Ne5 {[%emt 0:00:23]} Nc4+ {[%emt 0:00:06]} 38. Nxc4+ {[%emt 0:00:01]} dxc4 {[%emt 0:00:01]} 39. Rxb7 {[%emt 0:00:03]} Rxa2 {[%emt 0:00:05]} 40. Rb4 {[%emt 0:00:06]} c3 {[%emt 0:00:13]} 41. Rc4 {[%emt 0:00:29]} Rh2 {[%emt 0:00:06]} 42. Kd3 {[%emt 0:00:45]} c2 {[%emt 0:00:02]} 43. Rc8 {[%emt 0:00:02]} a5 {[%emt 0:00:04]} 44. Rc4 {[%emt 0:00:09]} a4 {[%emt 0:00:05]} 0-1